bitfinex/quotes_BTCUSD_20220204
["timestamp","ask_amount","ask_price","bid_price","bid_amount"]
[1643934815313,0.009965,37213.0,37212.0,0.1427958]
[1643934816363,0.009965,37213.0,37212.0,0.38502101]
[1643934816364,0.059965,37213.0,37212.0,0.38502101]
[1643934816962,0.059965,37213.0,37212.0,0.29602521]
[1643934817164,0.059965,37213.0,37212.0,0.0538]
[1643934817764,0.059965,37213.0,37212.0,0.28004757]
[1643934818365,0.059965,37213.0,37212.0,0.0538]
[1643934818764,0.059965,37213.0,37212.0,0.27862598]
[1643934818964,0.059965,37213.0,37212.0,0.0538]
[1643934819167,0.059965,37213.0,37212.0,0.27846008]
[1643934819366,0.059965,37213.0,37212.0,1.02846008]
[1643934819619,0.059965,37213.0,37212.0,0.27846008]
[1643934819810,0.009965,37213.0,37212.0,0.27846008]
[1643934820611,0.009965,37213.0,37212.0,0.0538]
[1643934820812,0.97449975,37212.0,37211.0,0.00076456]
[1643934821311,0.28446475,37212.0,37211.0,0.00076456]
[1643934821611,0.28446475,37212.0,37208.0,0.23625456]
[1643934821816,0.27449975,37212.0,37210.0,0.00076457]
[1643934822011,0.009965,37211.0,37210.0,0.00076457]
[1643934822812,0.009965,37211.0,37208.0,0.23625456]
[1643934823013,0.05,37214.0,37208.0,0.23625456]
[1643934823014,0.05,37214.0,37209.0,0.00076457]
[1643934823213,0.19174504,37211.0,37209.0,0.00076457]
[1643934823462,0.24174504,37211.0,37209.0,0.00076457]
[1643934823661,0.24174504,37211.0,37202.0,0.37342334]
[1643934823662,1.759965,37210.0,37202.0,0.37342334]
[1643934823862,1.75,37210.0,37203.0,0.57982965]
[1643934824264,0.24174504,37211.0,37207.0,0.30117323]
[1643934824470,0.05,37211.0,37207.0,0.30117323]
[1643934824666,0.009965,37210.0,37207.0,0.30117323]
[1643934824864,0.05,37214.0,37210.0,0.01992999]
[1643934825064,0.05,37214.0,37208.0,0.21548359]
[1643934825265,0.51339422,37215.0,37208.0,0.21438416]
[1643934825665,0.24115978,37212.0,37208.0,0.21438416]
[1643934825865,0.30838178,37212.0,37208.0,0.21438416]
[1643934826165,0.05,37212.0,37208.0,0.21438416]
[1643934826565,0.01923897,37216.0,37208.0,0.5184021]
[1643934826566,0.05,37214.0,37208.0,0.5184021]
[1643934826765,0.01923897,37216.0,37208.0,0.5184021]
[1643934826967,0.01923897,37216.0,37208.0,0.21438416]
[1643934827211,0.01923897,37216.0,37205.0,0.2413594]
[1643934827212,0.30412887,37212.0,37205.0,0.2413594]
[1643934827412,0.30412887,37212.0,37202.0,0.42722334]
[1643934827610,0.30412887,37212.0,37202.0,0.51259981]
[1643934827810,0.00076164,37210.0,37202.0,0.51259981]
[1643934828009,0.00076164,37210.0,37204.0,0.26627629]
[1643934828212,0.00253008,37208.0,37205.0,0.14271393]
[1643934828412,0.00253008,37208.0,37205.0,0.352406]
[1643934828611,0.00253008,37208.0,37206.0,0.24180711]
[1643934828813,0.00253008,37208.0,37207.0,2.102406]
[1643934829911,0.00253008,37208.0,37207.0,2.10262342]
[1643934830715,0.25236271,37212.0,37209.0,0.71670827]
[1643934831364,0.05,37212.0,37209.0,0.71670827]
[1643934831561,0.05,37214.0,37209.0,0.71670827]
[1643934831962,0.167216,37215.0,37209.0,0.71670827]
[1643934832165,0.117216,37215.0,37209.0,0.71670827]
[1643934832363,0.24033103,37214.0,37209.0,0.71670827]
[1643934832663,0.05,37213.0,37209.0,0.71670827]
[1643934832863,0.05,37210.0,37209.0,0.71670827]
[1643934833463,0.05,37210.0,37209.0,0.71692569]
[1643934833862,0.05,37210.0,37209.0,0.71670827]
[1643934834362,1.35,37210.0,37209.0,0.71670827]
[1643934834814,1.45,37210.0,37209.0,0.71670827]
[1643934835213,0.7,37210.0,37209.0,0.71670827]
[1643934835413,0.2,37210.0,37209.0,0.71670827]
[1643934835914,0.1,37210.0,37209.0,0.71670827]
[1643934836115,1.65,37210.0,37209.0,0.71670827]
[1643934836315,1.8,37210.0,37209.0,0.71670827]
[1643934837116,1.75,37210.0,37209.0,0.71670827]
[1643934837320,1.8,37210.0,37209.0,0.71670827]
[1643934837620,0.25674429,37210.0,37209.0,0.71670827]
[1643934837918,0.15,37210.0,37209.0,0.71670827]
[1643934838118,2.45,37210.0,37209.0,0.71670827]
[1643934838366,2.55,37210.0,37209.0,0.71670827]
[1643934842116,2.54895269,37210.0,37209.0,0.71670827]
[1643934843715,2.49895269,37210.0,37209.0,0.71670827]
[1643934845316,2.68343168,37210.0,37209.0,0.71670827]
[1643934847770,2.67671289,37210.0,37209.0,0.71670827]
[1643934848171,0.37671289,37210.0,37209.0,0.71670827]
[1643934848371,0.23447899,37210.0,37209.0,0.78779827]
[1643934848574,0.23447899,37210.0,37209.0,1.14020427]
[1643934848575,0.05,37210.0,37209.0,1.14020427]
[1643934848771,0.05,37210.0,37209.0,0.78779827]
[1643934848972,0.75,37210.0,37209.0,0.78801569]
[1643934849174,0.05,37210.0,37209.0,0.78779827]
[1643934849373,0.85076221,37211.0,37210.0,0.08627042]
[1643934849630,1.0852412,37211.0,37210.0,0.08627042]
[1643934849827,0.85076221,37211.0,37210.0,0.08648784]
[1643934850227,0.90076221,37211.0,37210.0,0.08648784]
[1643934850428,0.9,37211.0,37210.0,0.08648784]
[1643934850624,0.95,37211.0,37210.0,0.08648784]
[1643934850826,1.05,37211.0,37210.0,0.00021742]
[1643934851125,1.05,37211.0,37209.0,0.71670827]
[1643934851126,1.23447899,37211.0,37209.0,0.71670827]
[1643934851525,1.28447899,37211.0,37209.0,0.71664412]
[1643934851725,1.23447899,37211.0,37209.0,0.71664412]
[1643934851926,1.53447899,37210.0,37209.0,0.71664412]
[1643934852326,1.68447899,37210.0,37209.0,0.71664412]
[1643934853965,1.18447899,37210.0,37209.0,0.71664412]
[1643934854166,0.33436852,37210.0,37209.0,0.71664412]
[1643934854365,0.23436852,37210.0,37209.0,0.71664412]
[1643934854567,0.14988953,37210.0,37209.0,0.71664412]
[1643934855667,0.10076221,37211.0,37209.0,0.71664412]
[1643934855867,0.10076221,37211.0,37209.0,0.80891412]
[1643934856067,0.05076221,37211.0,37209.0,0.80891412]
[1643934856470,0.05,37211.0,37209.0,0.80891412]
[1643934856670,0.05,37211.0,37210.0,0.21479026]
[1643934856869,0.05,37211.0,37209.0,0.80891412]
[1643934858514,0.05,37211.0,37210.0,0.21471397]
[1643934859718,0.05,37211.0,37209.0,0.80891412]
[1643934860724,0.05,37211.0,37209.0,0.71664412]
[1643934862368,0.1,37211.0,37209.0,0.71664412]
[1643934862769,0.15,37211.0,37209.0,0.71664412]
[1643934866818,0.55334219,37211.0,37209.0,0.71664412]
[1643934867019,2.2306409,37210.0,37209.0,0.71664412]
[1643934867220,2.2806409,37210.0,37209.0,0.71664412]
[1643934867419,2.56511537,37210.0,37209.0,0.71664412]
[1643934867821,3.09704412,37210.0,37209.0,0.71664412]
[1643934868018,3.09704412,37210.0,37209.0,0.64497971]
[1643934868019,3.44704412,37210.0,37209.0,0.64497971]
[1643934868470,3.06822954,37210.0,37209.0,0.64497971]
[1643934868674,3.57877383,37210.0,37209.0,0.08874853]
[1643934869072,3.80940999,37210.0,37204.0,0.00076236]
[1643934869272,0.067254,37208.0,37204.0,0.00076236]
[1643934869473,2.8,37205.0,37204.0,0.00076236]
[1643934869672,3.12196412,37205.0,37200.0,0.01]
[1643934869873,3.15437106,37205.0,37200.0,0.01]
[1643934870073,0.37830886,37204.0,37200.0,0.01]
[1643934870275,0.0538,37203.0,37200.0,0.01]
[1643934870474,0.1883091,37203.0,37200.0,0.01]
[1643934870972,0.1883091,37203.0,37200.0,0.01076233]
[1643934871178,0.2383091,37203.0,37200.0,0.01076233]
[1643934871375,0.2883091,37203.0,37200.0,0.01076233]
[1643934871776,0.2883091,37203.0,37195.0,0.00021744]
[1643934871777,2.75,37201.0,37195.0,0.00021744]
[1643934871975,0.0538,37200.0,37195.0,0.00021744]
[1643934872214,0.067261,37196.0,37189.0,0.02030538]
[1643934872617,0.19438053,37191.0,37189.0,0.02008794]
[1643934872815,0.35496024,37191.0,37189.0,0.02008794]
[1643934873415,0.52222424,37191.0,37189.0,0.02008794]
[1643934873614,0.52222424,37191.0,37189.0,0.02030538]
[1643934873819,0.52222424,37191.0,37188.0,0.00023531]
[1643934874314,0.0538,37190.0,37188.0,0.00023531]
[1643934875416,0.12107,37190.0,37188.0,0.00023531]
[1643934875615,0.12107,37190.0,37186.0,0.005]
[1643934875883,0.23834,37190.0,37187.0,0.00076184]
[1643934876283,0.05,37189.0,37187.0,0.00076184]
[1643934876985,0.05,37189.0,37186.0,0.005]
[1643934876986,0.05,37189.0,37186.0,0.00576185]
[1643934877285,0.41406438,37188.0,37186.0,0.00576185]
[1643934877685,0.51406438,37188.0,37186.0,0.00576185]
[1643934878085,0.44680038,37188.0,37187.0,0.09812272]
[1643934878686,0.44680038,37188.0,37187.0,0.59812272]
[1643934879289,0.29680038,37188.0,37187.0,0.95052872]
[1643934879717,0.29680038,37188.0,37187.0,3.15052872]
[1643934880120,0.28006973,37198.0,37197.0,0.352406]
[1643934880316,0.28006973,37198.0,37197.0,0.457186]
[1643934880317,0.34731073,37198.0,37197.0,0.457186]
[1643934880518,0.34731073,37198.0,37197.0,0.10478]
[1643934881319,2.50879542,37198.0,37197.0,0.10478]
[1643934881519,2.55879542,37198.0,37196.0,0.00076179]
[1643934881723,2.184496,37198.0,37191.0,0.05]
[1643934881917,2.184496,37198.0,37196.0,0.00076179]
[1643934882120,2.234496,37198.0,37196.0,0.00076179]
[1643934882318,2.28455155,37197.0,37196.0,0.00076179]
[1643934882719,2.38455155,37197.0,37196.0,0.00076179]
[1643934882917,0.134515,37196.0,37186.0,0.35255999]
[1643934883119,2.12118197,37196.0,37195.0,0.00076179]
[1643934883365,2.45573352,37196.0,37195.0,0.00076179]
[1643934883565,2.27118197,37196.0,37195.0,0.00076179]
[1643934883766,2.067258,37196.0,37195.0,0.00076179]
[1643934883965,0.15,37196.0,37190.0,0.09600319]
[1643934884166,0.15,37196.0,37194.0,0.0007618]
[1643934884167,0.05,37196.0,37194.0,0.0007618]
[1643934884369,0.184513,37197.0,37194.0,0.0007618]
[1643934885269,0.134514,37196.0,37191.0,0.00021461]
[1643934885470,0.134514,37196.0,37194.0,0.0007618]
[1643934885668,0.05,37195.0,37194.0,0.0007618]
[1643934886470,0.067264,37193.0,37189.0,0.00021461]
[1643934886771,0.184529,37192.0,37187.0,0.0032623]
[1643934886973,0.184529,37192.0,37187.0,0.00304769]
[1643934887416,0.184529,37192.0,37187.0,0.0532623]
[1643934887619,0.184529,37192.0,37187.0,0.00021461]
[1643934887818,0.184529,37192.0,37188.0,0.00076184]
[1643934888819,0.184529,37192.0,37187.0,0.00021461]
[1643934889018,0.184529,37192.0,37186.0,0.14328821]
[1643934889019,0.184529,37192.0,37188.0,0.00076184]
[1643934890019,0.184529,37192.0,37186.0,0.05097645]
[1643934890020,1.584529,37192.0,37186.0,0.05097645]
[1643934890222,1.584529,37192.0,37188.0,0.00076184]
[1643934890421,1.684529,37192.0,37188.0,0.00076184]
[1643934891282,1.684529,37192.0,37187.0,0.00021464]
[1643934891482,1.684529,37192.0,37186.0,0.14290763]
[1643934891684,0.067266,37191.0,37186.0,0.14290763]
[1643934891982,0.067266,37191.0,37188.0,0.05]
[1643934892582,0.067266,37191.0,37187.0,0.00021464]
[1643934892782,0.067266,37191.0,37186.0,0.14366893]
[1643934893184,0.067264,37190.0,37186.0,0.05195239]
[1643934893384,0.117264,37190.0,37186.0,0.00195239]
[1643934893585,0.167264,37190.0,37186.0,0.00119109]
[1643934893785,0.167264,37190.0,37186.0,0.00195237]
[1643934894926,0.167264,37190.0,37186.0,0.00119109]
[1643934895124,0.167264,37190.0,37186.0,0.00195237]
[1643934895324,0.23453503,37190.0,37186.0,0.00195237]
[1643934895725,0.167264,37190.0,37186.0,0.00195237]
[1643934896125,0.167264,37190.0,37186.0,0.05119109]
[1643934896325,0.167264,37190.0,37186.0,0.05195237]
[1643934896528,0.167264,37190.0,37187.0,0.05]
[1643934896727,0.167264,37190.0,37187.0,0.05021464]
[1643934897428,0.167264,37190.0,37187.0,0.00021464]
[1643934897628,0.167264,37190.0,37186.0,0.00195237]
[1643934898462,0.167264,37190.0,37187.0,0.05]
[1643934898763,0.167264,37190.0,37187.0,0.05021464]
[1643934899865,0.167264,37190.0,37187.0,0.00021464]
[1643934900067,0.167264,37190.0,37186.0,0.00195237]
[1643934900466,0.167264,37190.0,37188.0,0.05]
[1643934901267,0.167264,37190.0,37187.0,0.00021464]
[1643934901469,0.167264,37190.0,37186.0,0.00195238]
[1643934901872,0.5713991,37189.0,37186.0,0.00195238]
[1643934902119,0.05,37188.0,37186.0,0.00119109]
[1643934902321,2.8038,37187.0,37186.0,0.00195237]
[1643934902522,2.8538,37187.0,37186.0,0.00195237]
[1643934902720,3.26523984,37187.0,37186.0,0.00195237]
[1643934902920,3.39980284,37187.0,37186.0,0.00195237]
[1643934903318,3.39980284,37187.0,37186.0,0.00119109]
[1643934904122,3.088363,37187.0,37186.0,0.00119109]
[1643934904321,1.3538,37187.0,37186.0,0.00119109]
[1643934904820,1.2038,37187.0,37186.0,0.00119109]
[1643934905023,0.201819,37189.0,37186.0,0.00119109]
[1643934905221,1.57869318,37187.0,37186.0,0.00119109]
[1643934905621,1.35,37187.0,37186.0,0.00119109]
[1643934906065,1.45,37187.0,37186.0,0.00119109]
[1643934906264,1.55,37187.0,37186.0,0.00119109]
[1643934909272,2.35,37187.0,37186.0,0.00119109]
[1643934909918,1.55,37187.0,37186.0,0.00119109]
[1643934910719,0.201819,37189.0,37186.0,0.05119109]
[1643934911019,0.201819,37189.0,37187.0,0.03208]
[1643934911219,0.567264,37190.0,37188.0,0.05]
[1643934911618,0.567264,37190.0,37188.0,0.05021464]
[1643934912019,0.567264,37190.0,37188.0,0.15416353]
[1643934912219,0.567264,37190.0,37188.0,0.10416353]
[1643934912418,0.067264,37190.0,37188.0,0.10416353]
[1643934912620,0.067264,37190.0,37189.0,0.05]
[1643934912824,0.134508,37191.0,37189.0,0.05021464]
[1643934913020,0.134508,37191.0,37190.0,0.352406]
[1643934913463,0.134508,37191.0,37190.0,0.05]
[1643934914064,0.184508,37191.0,37190.0,0.05]
[1643934914267,0.234508,37191.0,37188.0,0.10416353]
[1643934914565,0.234508,37191.0,37187.0,0.05021464]
[1643934914764,0.234508,37191.0,37189.0,0.05]
[1643934914965,0.234508,37191.0,37190.0,0.05]
[1643934915366,0.33863714,37191.0,37187.0,0.05021464]
[1643934915563,0.30177196,37191.0,37187.0,0.05021464]
[1643934915766,0.40177196,37191.0,37187.0,0.00021464]
[1643934915968,0.40177196,37191.0,37186.0,0.00142532]
[1643934915969,0.4128378,37190.0,37186.0,0.00142532]
[1643934916167,0.3455718,37188.0,37186.0,0.00142532]
[1643934916366,0.1,37188.0,37186.0,0.00119109]
[1643934916565,0.5455718,37188.0,37186.0,0.00119109]
[1643934916766,0.8819366,37188.0,37186.0,0.00119109]
[1643934916965,0.95809696,37188.0,37186.0,0.00119109]
[1643934917616,0.8164896,37188.0,37186.0,0.00119109]
[1643934917817,0.8164896,37188.0,37187.0,1.0]
[1643934917818,0.5473908,37188.0,37187.0,1.0]
[1643934918020,0.201819,37188.0,37187.0,1.10941464]
[1643934918216,0.201819,37188.0,37187.0,0.10941464]
[1643934918619,0.201819,37188.0,37187.0,0.09792153]
[1643934918816,0.201819,37188.0,37187.0,0.09813618]
[1643934918817,1.07032529,37188.0,37187.0,0.09813618]
[1643934919016,0.901819,37188.0,37187.0,0.00021465]
[1643934919217,0.05,37187.0,37186.0,0.00195301]
[1643934919817,0.851819,37188.0,37186.0,0.00195301]
[1643934920018,1.06937438,37188.0,37186.0,0.0011911]
[1643934920220,0.919088,37188.0,37186.0,0.0011911]
[1643934920420,0.319088,37188.0,37186.0,0.0011911]
[1643934920878,0.251819,37188.0,37186.0,0.0011911]
[1643934921777,0.05,37187.0,37186.0,0.0011911]
[1643934922879,0.06727,37189.0,37186.0,0.0511911]
[1643934923078,0.06727,37189.0,37188.0,0.05]
[1643934923283,0.134504,37192.0,37189.0,0.58022436]
[1643934923481,0.067246,37194.0,37191.0,0.05]
[1643934923680,0.067246,37194.0,37190.0,0.29526204]
[1643934923681,0.55068639,37198.0,37193.0,0.05]
[1643934923880,0.02054592,37198.0,37197.0,1.852406]
[1643934924079,0.02054592,37198.0,37197.0,1.53164]
[1643934924279,0.02054592,37198.0,37197.0,1.58164]
[1643934924479,0.02054592,37198.0,37197.0,1.81465179]
[1643934924717,0.02054592,37198.0,37197.0,2.16705779]
[1643934924918,0.02054592,37198.0,37197.0,0.13164]
[1643934925219,0.067232,37200.0,37197.0,0.13164]
[1643934925220,0.00076177,37199.0,37197.0,0.13164]
[1643934925516,0.00076177,37199.0,37198.0,0.05]
[1643934926120,0.4128038,37200.0,37198.0,0.05]
[1643934926318,0.46356556,37200.0,37198.0,0.05]
[1643934926921,0.18523584,37200.0,37198.0,0.05]
[1643934927320,0.18447408,37200.0,37198.0,0.05]
[1643934927720,0.42746895,37200.0,37198.0,0.05]
[1643934928569,0.98805813,37199.0,37198.0,0.05]
[1643934929169,1.03805813,37199.0,37198.0,0.05]
[1643934929371,0.33805813,37199.0,37198.0,0.05]
[1643934930169,1.08805813,37199.0,37198.0,0.05]
[1643934931572,1.27260048,37199.0,37198.0,0.05]
[1643934931872,1.22260048,37199.0,37194.0,0.22478633]
[1643934932118,1.22260048,37199.0,37198.0,0.05]
[1643934932715,1.27260048,37199.0,37198.0,0.05]
[1643934933719,0.98454235,37199.0,37198.0,0.05]
[1643934934117,0.8,37199.0,37198.0,0.05]
[1643934935215,0.42823071,37200.0,37198.0,0.05]
[1643934935216,0.47823071,37200.0,37198.0,0.05]
[1643934935615,0.47746895,37200.0,37198.0,0.05]
[1643934936667,0.57746895,37200.0,37196.0,0.05]
[1643934936868,0.57746895,37200.0,37197.0,0.21835084]
[1643934937067,0.57746895,37200.0,37196.0,0.05]
[1643934937268,0.67850598,37200.0,37196.0,0.05]
[1643934937666,0.67850598,37200.0,37191.0,0.2556925]
[1643934937667,0.05,37197.0,37191.0,0.25460712]
[1643934938067,0.1,37197.0,37191.0,0.25460712]
[1643934938267,0.00076179,37196.0,37191.0,0.25460712]
[1643934939067,0.067248,37194.0,37191.0,0.25460712]
[1643934942920,0.27431249,37196.0,37191.0,0.25460712]
[1643934943120,0.27507426,37196.0,37191.0,0.25460712]
[1643934944168,0.067248,37194.0,37191.0,0.25460712]
[1643934944370,0.05076178,37196.0,37192.0,0.352406]
[1643934944571,0.00076178,37196.0,37193.0,0.28486412]
[1643934945170,0.15,37199.0,37193.0,0.28486412]
[1643934945371,0.06724,37198.0,37193.0,0.28486412]
[1643934945571,0.00076179,37196.0,37192.0,0.352406]
[1643934945771,0.00076179,37196.0,37193.0,0.26384655]
[1643934946073,0.00076179,37196.0,37194.0,0.406206]
[1643934946272,0.00076179,37196.0,37195.0,2.99663866]
[1643934946476,0.63833619,37207.0,37195.0,2.99663866]
[1643934946477,0.63833619,37207.0,37195.0,3.40284466]
[1643934946674,0.02123878,37207.0,37202.0,0.27521422]
[1643934946875,0.19662986,37205.0,37202.0,0.23619069]
[1643934947121,0.19662986,37205.0,37199.0,0.352406]
[1643934947515,0.19662986,37205.0,37198.0,0.0538]
[1643934947716,0.19662986,37205.0,37198.0,0.30043866]
[1643934947917,0.00076174,37204.0,37198.0,0.0538]
[1643934948116,0.00076174,37204.0,37200.0,0.3116126]
[1643934948317,0.00076174,37204.0,37201.0,0.27202145]
[1643934948917,0.284456,37207.0,37201.0,0.27202145]
[1643934949120,0.06799074,37204.0,37201.0,0.27202145]
[1643934949317,0.31738977,37204.0,37201.0,0.27202145]
[1643934949717,0.36738977,37204.0,37201.0,0.27202145]
[1643934949922,0.36738977,37204.0,37202.0,0.017228]
[1643934949923,0.06722865,37204.0,37202.0,0.017228]
[1643934950517,0.06722865,37204.0,37201.0,0.134458]
[1643934950718,0.06722865,37204.0,37201.0,0.26662616]
[1643934951169,0.06722865,37204.0,37202.0,0.352406]
[1643934951372,0.06722865,37204.0,37201.0,0.134458]
[1643934951569,0.06722865,37204.0,37201.0,0.27088786]
[1643934952975,0.06722865,37204.0,37201.0,0.134458]
[1643934954380,0.06722865,37204.0,37202.0,0.352406]
[1643934955822,0.7,37203.0,37200.0,0.74776047]
[1643934956022,0.13448623,37202.0,37200.0,0.74776047]
[1643934956222,0.05,37201.0,37200.0,0.74776047]
[1643934956423,1.49509113,37201.0,37200.0,0.74776047]
[1643934956823,1.64509113,37201.0,37200.0,0.74776047]
[1643934957025,0.44509113,37201.0,37200.0,0.74776047]
[1643934957823,1.74509113,37201.0,37200.0,0.74776047]
[1643934958865,2.84509113,37201.0,37200.0,0.74776047]
[1643934959065,3.02962486,37201.0,37200.0,0.74776047]
[1643934959670,1.92962486,37201.0,37200.0,0.74776047]
[1643934960269,0.62962486,37201.0,37200.0,0.74776047]
[1643934960670,1.84509113,37201.0,37200.0,0.74776047]
[1643934961073,0.38453373,37201.0,37200.0,0.74776047]
[1643934961271,0.28453373,37201.0,37200.0,0.74776047]
[1643934961472,0.05,37201.0,37200.0,0.74776047]
[1643934962125,0.40291659,37205.0,37204.0,0.11816549]
[1643934962424,3.00291659,37205.0,37204.0,0.0848286]
[1643934962621,2.67986633,37205.0,37204.0,0.0848286]
[1643934962820,3.00321378,37205.0,37204.0,0.0848286]
[1643934963222,3.15321378,37205.0,37204.0,0.0848286]
[1643934963622,2.82986566,37205.0,37204.0,0.0848286]
[1643934967970,2.81700871,37205.0,37204.0,0.0848286]
[1643934968173,2.81700871,37205.0,37200.0,0.74776047]
[1643934968174,2.45,37204.0,37200.0,0.74776047]
[1643934968374,2.8,37201.0,37200.0,0.74776047]
[1643934968570,2.8,37201.0,37200.0,0.35776047]
[1643934968571,3.39414176,37201.0,37200.0,0.35776047]
[1643934968770,2.25,37200.0,37194.0,0.00076255]
[1643934968972,0.13366566,37199.0,37194.0,0.00076255]
[1643934969170,2.65445625,37195.0,37193.0,0.00305029]
[1643934969372,0.0538,37194.0,37189.0,0.006]
[1643934969621,0.0538,37194.0,37189.0,0.00905014]
[1643934969622,0.4572458,37194.0,37189.0,0.00905014]
[1643934969817,0.5572458,37194.0,37189.0,0.00405014]
[1643934970017,2.44308801,37193.0,37189.0,0.00905014]
[1643934970221,0.3458111,37191.0,37189.0,0.0092625]
[1643934970416,0.4458111,37191.0,37189.0,0.00621236]
[1643934970621,0.1,37191.0,37189.0,0.00621236]
[1643934970820,0.15,37191.0,37189.0,0.00621236]
[1643934971418,0.2172676,37191.0,37189.0,0.00621236]
[1643934971618,0.0672676,37191.0,37189.0,0.00621236]
[1643934971917,0.0672676,37191.0,37189.0,0.00121236]
[1643934972119,0.0672676,37191.0,37189.0,0.00621236]
[1643934972721,0.13453302,37190.0,37189.0,0.00121236]
[1643934973118,0.18453302,37190.0,37189.0,0.00121236]
[1643934974170,3.07715295,37190.0,37189.0,0.00121236]
[1643934974367,3.07715295,37190.0,37189.0,0.001]
[1643934974368,3.17715295,37190.0,37189.0,0.001]
[1643934974767,3.23095295,37190.0,37189.0,0.00121236]
[1643934975571,3.23095295,37190.0,37189.0,0.001]
[1643934975969,3.23095295,37190.0,37189.0,0.00121236]
[1643934976369,0.33833302,37190.0,37189.0,0.00121236]
[1643934976570,1.93833302,37190.0,37189.0,0.00121236]
[1643934976768,1.93833302,37190.0,37189.0,0.001]
[1643934977218,1.93833302,37190.0,37189.0,0.00121236]
[1643934977719,2.38833302,37190.0,37189.0,0.00121236]
[1643934977920,1.93833302,37190.0,37189.0,0.001]
[1643934978319,2.1180599,37190.0,37189.0,0.00121236]
[1643934978517,3.0180599,37190.0,37189.0,0.00121236]
[1643934978918,2.1180599,37190.0,37189.0,0.00121236]
[1643934979117,2.1180599,37190.0,37189.0,0.001]
[1643934979517,2.1180599,37190.0,37189.0,0.00121236]
[1643934980319,2.1180599,37190.0,37189.0,0.001]
[1643934980720,2.1180599,37190.0,37189.0,0.00121236]
[1643934981388,2.1180599,37190.0,37189.0,0.001]
[1643934981787,2.1180599,37190.0,37189.0,0.00121236]
[1643934982290,1.93833302,37190.0,37189.0,0.00121236]
[1643934982488,2.63833302,37190.0,37189.0,0.00121236]
[1643934982688,2.63833302,37190.0,37189.0,0.001]
[1643934982889,2.63833302,37190.0,37189.0,0.00121236]
[1643934983091,2.8179051,37190.0,37189.0,0.00121236]
[1643934983288,2.8679051,37190.0,37189.0,0.00121236]
[1643934983491,2.8679051,37190.0,37189.0,0.00103346]
[1643934983492,3.22464939,37190.0,37189.0,0.00103346]
[1643934983789,3.5701428,37190.0,37189.0,0.00103346]
[1643934983988,3.22464939,37190.0,37189.0,0.00103346]
[1643934984188,3.5701428,37190.0,37189.0,0.00103346]
[1643934984387,2.82464939,37190.0,37189.0,0.00103346]
[1643934984643,3.04507731,37190.0,37189.0,0.00103346]
[1643934984830,3.22460012,37190.0,37189.0,0.00021236]
[1643934985031,0.21716349,37184.0,37182.0,0.00283587]
[1643934985231,0.33444315,37184.0,37182.0,0.00283587]
[1643934985735,0.28444315,37184.0,37182.0,0.00283587]
[1643934986131,0.28444315,37184.0,37179.0,0.0002124]
[1643934986331,0.28444315,37184.0,37181.0,0.0007089]
[1643934987032,0.33444315,37184.0,37182.0,0.05]
[1643934987232,0.33444315,37184.0,37180.0,0.0002124]
[1643934987434,0.33444315,37184.0,37181.0,0.0007089]
[1643934988465,0.33444315,37184.0,37180.0,0.0002124]
[1643934988666,0.33444315,37184.0,37181.0,0.00071251]
[1643934989067,0.43444315,37184.0,37181.0,0.00071251]
[1643934989669,0.43444315,37184.0,37180.0,0.0002124]
[1643934989866,0.067279,37183.0,37181.0,0.00071251]
[1643934990871,0.067279,37183.0,37180.0,0.0002124]
[1643934991069,0.067279,37183.0,37180.0,0.00071251]
[1643934991569,0.067279,37183.0,37180.0,0.00092491]
[1643934992118,0.067279,37183.0,37180.0,0.0002124]
[1643934992320,0.067279,37183.0,37180.0,0.00071215]
[1643934992918,0.11727966,37184.0,37180.0,0.00071215]
[1643934993119,0.11727966,37184.0,37181.0,0.05]
[1643934993319,0.06727966,37184.0,37181.0,0.05]
[1643934993522,0.06727966,37184.0,37181.0,0.29413487]
[1643934993919,0.06727966,37184.0,37181.0,0.29392247]
[1643934994119,0.06727966,37184.0,37182.0,0.21551471]
[1643934994321,0.06727966,37184.0,37181.0,0.29392247]
[1643934994518,0.06727966,37184.0,37181.0,0.24392247]
[1643934994721,0.06727966,37184.0,37181.0,0.24463461]
[1643934995119,0.06727966,37184.0,37181.0,0.29463461]
[1643934995321,0.06727966,37184.0,37182.0,0.05]
[1643934995620,0.06727966,37184.0,37181.0,0.24392247]
[1643934995868,0.06727966,37184.0,37181.0,0.24463465]
[1643934996072,0.06727966,37184.0,37182.0,0.05]
[1643934996268,0.06727966,37184.0,37182.0,0.04500001]
[1643934996469,0.00499999,37183.0,37182.0,0.04500001]
[1643934997368,0.50499999,37183.0,37182.0,0.04500001]
[1643934998269,0.95499999,37183.0,37182.0,0.04500001]
[1643934998673,0.95499999,37183.0,37181.0,0.00071218]
[1643934998870,1.08956042,37183.0,37181.0,0.00071218]
[1643934999269,1.08956042,37183.0,37179.0,0.04500001]
[1643934999470,1.08456043,37183.0,37180.0,0.00071485]
[1643934999723,1.56344006,37181.0,37180.0,0.00071485]
[1643934999922,1.4,37181.0,37180.0,0.00071485]
[1643935000125,1.40499999,37181.0,37180.0,0.00071485]
[1643935000524,1.40499999,37181.0,37179.0,0.04500001]
[1643935000722,0.12227917,37181.0,37179.0,0.04571487]
[1643935000923,0.12227917,37181.0,37179.0,0.39833081]
[1643935001727,0.12227917,37181.0,37179.0,0.39761595]
[1643935002925,0.12227917,37181.0,37180.0,0.2306504]
[1643935003125,0.1,37184.0,37180.0,0.83086034]
[1643935003367,0.1,37184.0,37181.0,0.352406]
[1643935003872,0.04058867,37185.0,37181.0,0.00020994]
[1643935004067,0.26696803,37185.0,37181.0,0.00020994]
[1643935004268,0.06727695,37184.0,37181.0,0.000712]
[1643935004670,0.06727695,37184.0,37181.0,0.00092194]
[1643935005272,0.42250176,37184.0,37181.0,0.00020994]
[1643935005470,0.42250176,37184.0,37181.0,0.000712]
[1643935005670,0.52250176,37184.0,37181.0,0.000712]
[1643935005869,0.52250176,37184.0,37181.0,0.00092194]
[1643935006475,0.52250176,37184.0,37181.0,0.00020994]
[1643935006675,0.52250176,37184.0,37181.0,0.00071215]
[1643935006875,0.52250176,37184.0,37181.0,0.00092209]
[1643935007522,0.49886887,37186.0,37182.0,0.05]
[1643935007523,0.32654503,37186.0,37182.0,0.05]
[1643935007722,0.01966467,37186.0,37185.0,0.05]
[1643935007922,0.01966467,37186.0,37185.0,0.29735257]
[1643935008323,0.01966467,37186.0,37185.0,3.14975857]
[1643935008523,0.01966467,37186.0,37185.0,3.47858756]